fUSD/lending_fUSD_20260307
["ID","MTS","AMOUNT","RATE_DAILY","PERIOD"]
[407956539,1772926249465,-2635.90058162,0.00049788,120]
[407956540,1772926249474,-11179.77001639,0.00049788,54]
[407956541,1772926249483,-5316470.68915212,0.00049788,15]
[407956542,1772926249573,-713.98711326,0.00049788,15]
[407956543,1772926249584,-315.0,0.00049788,15]
[407956544,1772926250123,-166.66,0.00015757,2]
[407956545,1772926250132,-166.66,0.00016081,2]
[407956546,1772926250141,-166.66,0.00016406,2]
[407956547,1772926250151,-0.02,0.00016731,2]
[407956548,1772926250162,-166.64,0.00016731,2]
[407956549,1772926250172,-166.66,0.00017056,2]
[407956550,1772926250181,-414.0,0.00025877,2]
[407956551,1772926250191,-414.0,0.00028877,2]
[407956552,1772926250201,-414.0,0.00031877,2]
[407956553,1772926250212,-414.0,0.00034877,2]
[407956554,1772926250223,-414.0,0.00037877,2]
[407956555,1772926250234,-414.0,0.00040877,2]
[407956556,1772926250243,-500.0,0.00042191,120]
[407956557,1772926250253,-500.0,0.00042191,120]
[407956558,1772926250263,-500.0,0.00042191,120]
[407956559,1772926250272,-500.0,0.00042191,120]
[407956560,1772926250282,-500.0,0.00042191,120]
[407956561,1772926250291,-500.0,0.00042191,120]
[407956562,1772926250300,-500.0,0.00042191,120]
[407956563,1772926250309,-500.0,0.00042191,120]
[407956564,1772926250318,-500.0,0.00042191,120]
[407956565,1772926250327,-414.0,0.00043877,2]
[407956566,1772926250337,-750.7,0.00045,30]
[407956567,1772926250346,-1223.95,0.00045,30]
[407956568,1772926250355,-304.7,0.00045,30]
[407956569,1772926250364,-204.662,0.00046877,2]
[407956570,1772926250374,-750.7,0.0004725,30]
[407956571,1772926250383,-6.78971812,0.0004725,30]
[407956573,1772927197103,-197.79725783,0.00014673,2]
[407956588,1772927432112,-523.0,0.00014673,2]
[407956589,1772927432124,-279.20274217,0.00014673,2]
[407956590,1772927432134,-183.25886021,0.00015,2]
[407956591,1772927432150,-66.74113979,0.00015,2]
[407956592,1772927432160,-150.0,0.00015471,2]
[407956593,1772927432170,-397.25,0.00015471,2]
[407956594,1772927432180,-504.0,0.00017,2]
[407956595,1772927432190,-1749.62534016,0.0001872,2]
[407956596,1772927432202,-1052.37465984,0.0001872,2]
[407956597,1772927432211,-270.784055,0.00018849,7]
[407956598,1772927432221,-901.50315268,0.00019337,2]
[407956599,1772927432250,-298.49684732,0.00019337,2]
[407956600,1772927432259,-296.0,0.00019338,2]
[407956602,1772927432269,-9284.33,0.00019339,2]
[407956603,1772927432279,-9999.99,0.00019339,2]
[407956604,1772927432288,-5443.65,0.00019339,2]
[407956605,1772927432298,-3713.87,0.00019339,2]
[407956606,1772927432307,-3197.17,0.00019339,2]
[407956607,1772927432317,-150.99,0.00019339,2]
[407956608,1772927432327,-9999.99,0.00019339,2]
[407956609,1772927432337,-444.81251527,0.00019388,2]
[407956610,1772927432347,-2804.0,0.0001968,2]
[407956611,1772927432358,-155.66,0.0001979,2]
[407956612,1772927432368,-190.89,0.0002,7]
[407956613,1772927432378,-155.66,0.0002006,2]
[407956614,1772927432388,-155.66,0.0002033,2]
[407956615,1772927432398,-155.66,0.000206,2]
[407956616,1772927432408,-155.66,0.0002087,2]
[407956617,1772927432418,-155.66,0.0002114,2]
[407956618,1772927432429,-155.66,0.0002141,2]
[407956619,1772927432439,-504.0,0.000215,6]
[407956620,1772927432448,-155.66,0.0002168,2]
[407956621,1772927432458,-198.0,0.00021884,2]
[407956622,1772927432468,-155.66,0.0002195,2]
[407956623,1772927432478,-155.66,0.0002222,2]
[407956624,1772927432488,-155.73,0.0002249,2]
[407956625,1772927432499,-187.89,0.00023207,2]
[407956626,1772927432509,-342.03,0.00023207,2]
[407956627,1772927432519,-481.01,0.00023829,2]
[407956628,1772927432530,-952.84,0.00023981,2]
[407956629,1772927432541,-4468.19,0.0002426,2]
[407956630,1772927432552,-2441.04,0.00024578,2]
[407956631,1772927432562,-150.0,0.00024658,2]
[407956632,1772927432572,-20893.31,0.00024859,2]
[407956633,1772927432583,-481.01943592,0.00025021,2]
[407956634,1772927432593,-2441.04,0.00025192,2]
[407956635,1772927432603,-2441.04,0.00025807,2]
[407956636,1772927432614,-150.0,0.0002589,2]
[407956637,1772927432624,-504.0,0.00026,10]
[407956638,1772927432634,-4950.45870442,0.00026,2]
[407956639,1772927432644,-2441.04,0.00026421,2]
[407956640,1772927432654,-6337.89,0.00026591,2]
[407956641,1772927432665,-572.69,0.000268,14]
[407956642,1772927432676,-500.0,0.00026823,2]
[407956643,1772927432686,-500.0,0.00026875,2]
[407956644,1772927432696,-150.0,0.0002691,10]
[407956645,1772927432706,-150.0,0.0002691,10]
[407956646,1772927432717,-500.0,0.0002691,10]
[407956647,1772927432727,-500.0,0.0002691,10]
[407956648,1772927432737,-500.0,0.0002691,10]
[407956649,1772927432751,-150.0,0.0002691,2]
[407956650,1772927432762,-150.0,0.0002691,2]
[407956651,1772927432773,-500.0,0.0002691,7]
[407956652,1772927432785,-500.0,0.0002691,10]
[407956653,1772927432798,-150.0,0.0002691,10]
[407956654,1772927432809,-150.0,0.0002691,10]
[407956655,1772927432819,-150.0,0.0002691,10]
[407956656,1772927432830,-150.0,0.0002691,10]
[407956657,1772927432840,-150.0,0.0002691,10]
[407956658,1772927432850,-500.0,0.00026926,2]
[407956659,1772927432860,-150.0,0.00026965,10]
[407956660,1772927432870,-150.0,0.00026965,10]
[407956661,1772927432880,-500.0,0.00026965,10]
[407956662,1772927432890,-500.0,0.00026965,10]
[407956663,1772927432900,-500.0,0.00026965,10]
[407956664,1772927432910,-500.0,0.00026965,7]
[407956665,1772927432921,-150.0,0.00026965,10]
[407956666,1772927432931,-500.0,0.00026965,10]
[407956667,1772927432941,-150.0,0.00026965,10]
[407956668,1772927432955,-150.0,0.00026965,10]
[407956669,1772927432967,-212.54,0.00026978,2]
[407956670,1772927432978,-811.27036268,0.00026979,120]
[407956671,1772927432991,-141.56963732,0.00026979,120]
[407956672,1772927433002,-150.0,0.0002702,10]
[407956673,1772927433012,-150.0,0.0002702,10]
[407956674,1772927433025,-500.0,0.0002702,10]
[407956675,1772927433037,-350.0,0.0002702,10]
[407956676,1772927433049,-350.0,0.0002702,10]
[407956677,1772927433060,-552.0,0.0002702,7]
[407956678,1772927433070,-500.0,0.0002702,10]
[407956679,1772927433080,-200.0,0.0002702,10]
[407956680,1772927433091,-200.0,0.0002702,10]
[407956681,1772927433101,-190.26705956,0.0002702,10]
[407956682,1772927433112,-2441.04,0.00027035,2]
[407956683,1772927433123,-150.0,0.00027074,10]
[407956684,1772927433135,-150.0,0.00027074,10]
[407956685,1772927433146,-500.0,0.00027074,10]
[407956686,1772927433157,-300.0,0.00027074,10]
[407956687,1772927433167,-150.0,0.00027129,10]
[407956688,1772927433179,-150.0,0.00027129,10]
[407956689,1772927433189,-500.0,0.00027129,10]
[407956690,1772927433201,-500.0,0.00027184,10]
[407956691,1772927433211,-538.0,0.00027184,10]
[407956692,1772927433224,-150.0,0.00027185,2]
[407956693,1772927433234,-1000.0,0.00027397,20]
[407956694,1772927433245,-300.0,0.00027397,2]
[407956695,1772927433256,-150.0,0.0002827,2]
[407956696,1772927433267,-150.0,0.0002827,2]
[407956697,1772927433286,-500.0,0.0002827,2]
[407956698,1772927433298,-500.0,0.0002827,2]
[407956699,1772927433309,-500.0,0.00028325,2]
[407956700,1772927433319,-500.0,0.00028325,2]
[407956701,1772927433329,-500.0,0.0002838,2]
[407956702,1772927433339,-500.0,0.0002838,2]
[407956703,1772927433350,-150.0,0.00028434,2]
[407956704,1772927433360,-500.0,0.00028434,2]
[407956705,1772927433370,-150.0,0.00028468,7]
[407956706,1772927433379,-500.0,0.00028489,2]
[407956707,1772927433389,-500.0,0.00028508,2]
[407956708,1772927433399,-150.0,0.00028508,2]
[407956709,1772927433409,-500.0,0.00028508,2]
[407956710,1772927433420,-150.0,0.00028508,2]
[407956711,1772927433429,-500.0,0.00028508,2]
[407956712,1772927433439,-500.0,0.00028508,2]
[407956713,1772927433449,-214.70164119,0.00028508,2]
[407956714,1772927433459,-500.0,0.00028508,2]
[407956715,1772927433469,-500.0,0.00028508,2]
[407956716,1772927433480,-151.12456673,0.00028508,2]
[407956717,1772927433490,-150.0,0.00028508,2]
[407956718,1772927433799,-150.0,0.00028508,2]
[407956719,1772927433810,-500.0,0.00028508,2]
[407956720,1772927433821,-150.0,0.00028523,7]
[407956721,1772927433831,-2909.1256093,0.00028532,2]
[407956722,1772927433840,-179.0,0.00028544,2]
[407956723,1772927433849,-150.0,0.00028544,2]
[407956724,1772927433858,-23879.14033926,0.00028545,2]
[407956725,1772927433870,-4142.20067786,0.00028545,2]
[407956726,1772927433879,-500.0,0.00028563,2]
[407956727,1772927433889,-150.0,0.00028563,2]
[407956728,1772927433898,-500.0,0.00028563,2]
[407956729,1772927433907,-150.0,0.00028563,2]
[407956730,1772927433916,-500.0,0.00028563,2]
[407956731,1772927433925,-500.0,0.00028563,2]
[407956732,1772927433934,-500.0,0.00028563,2]
[407956733,1772927433944,-500.0,0.00028563,2]
[407956734,1772927433953,-200.0,0.00028563,2]
[407956735,1772927433962,-150.0,0.00028563,2]
[407956736,1772927433971,-500.0,0.00028563,2]
[407956737,1772927433981,-150.0,0.00028578,7]
[407956738,1772927433990,-400.0,0.000286,10]
[407956739,1772927433999,-200.0,0.00028618,2]
[407956740,1772927434008,-500.0,0.00028618,2]
[407956741,1772927434017,-500.0,0.00028618,2]
[407956742,1772927434027,-150.0,0.00028618,2]
[407956743,1772927434036,-500.62265494,0.00028618,2]
[407956744,1772927434045,-500.0,0.00028618,2]
[407956745,1772927434054,-500.0,0.00028618,2]
[407956746,1772927434063,-500.0,0.00028618,2]
[407956747,1772927434073,-500.0,0.00028618,2]
[407956748,1772927434082,-87155.94971667,0.00028625,2]
[407956749,1772927434093,-11183.49168333,0.00028625,2]
[407956750,1772927434102,-150.0,0.00028632,7]
[407956751,1772927434112,-653.38347657,0.00028636,2]
[407956752,1772927434122,-483.78768039,0.00028636,2]
[407956753,1772927434133,-418.75,0.00028636,2]
[407956760,1772927438338,-268.29882339,0.00027297,60]
[407956761,1772927438348,-500.0,0.00027396,2]
[407956762,1772927438357,-500.0,0.00027396,2]
[407956763,1772927438367,-500.0,0.00027396,2]
[407956764,1772927438377,-500.0,0.00027396,2]
[407956765,1772927438386,-500.0,0.00027396,2]
[407956766,1772927438397,-500.0,0.00027396,2]
[407956767,1772927438407,-500.0,0.00027396,2]
[407956768,1772927438416,-500.0,0.00027396,2]
[407956769,1772927438427,-500.0,0.00027396,2]
[407956770,1772927438436,-500.0,0.00027396,2]
[407956771,1772927438446,-500.0,0.00027396,2]
[407956772,1772927438457,-500.0,0.00027396,2]
[407956773,1772927438466,-500.0,0.00027396,2]
[407956774,1772927438475,-500.0,0.00027396,2]
[407956775,1772927438484,-500.0,0.00027396,2]
[407956776,1772927438494,-165.28871217,0.00027396,2]
[407956777,1772927438503,-500.0,0.00027396,2]
[407956778,1772927438512,-500.0,0.00027396,2]
[407956780,1772927438521,-500.0,0.00027396,2]
[407956782,1772927438531,-500.0,0.00027396,2]
[407956784,1772927438540,-500.0,0.00027396,2]
[407956786,1772927438549,-1038.66887952,0.00028063,5]
[407956788,1772927438559,-1108.76397963,0.00028063,5]
[407956790,1772927438568,-944.07884304,0.00028636,2]
[407956792,1772927438577,-403.0,0.00028636,10]
[407956794,1772927438586,-21215.71321295,0.00028642,2]
[407956796,1772927438595,-355.7876423,0.00028645,2]
[407956797,1772927438604,-241.38212233,0.00028645,5]
[407956799,1772927438615,-1191.01160593,0.00028645,2]
[407956801,1772927438625,-656.43829161,0.00028645,2]
[407956803,1772927438635,-893.14132914,0.00028645,2]
[407956805,1772927438645,-597.98311845,0.00028645,2]
[407956807,1772927438655,-3708.82164898,0.00028645,2]
[407956809,1772927438664,-500.0,0.00028672,2]
[407956811,1772927438679,-500.0,0.00028672,2]
[407956812,1772927438689,-150.0,0.00028672,2]
[407956813,1772927438698,-409.93316597,0.00028672,2]
[407956814,1772927438708,-500.0,0.00028672,2]
[407956815,1772927438717,-500.0,0.00028672,2]
[407956816,1772927438727,-250.0,0.00028672,2]
[407956817,1772927438736,-150.0,0.00028687,7]
[407956818,1772927438748,-800.0,0.000287,10]
[407956819,1772927438758,-500.0,0.00028727,2]
[407956820,1772927438767,-200.0,0.00028727,2]
[407956821,1772927438777,-500.0,0.00028735,120]
[407956822,1772927438787,-500.0,0.00028735,120]
[407956823,1772927438797,-500.0,0.00028735,120]
[407956824,1772927438806,-500.0,0.00028735,120]
[407956825,1772927438816,-500.0,0.00028735,120]
[407956826,1772927438825,-500.0,0.00028735,120]
[407956827,1772927438834,-500.0,0.00028735,120]
[407956828,1772927438844,-500.0,0.00028735,120]
[407956829,1772927438853,-500.0,0.00028735,30]
[407956830,1772927438862,-500.0,0.00028735,30]
[407956831,1772927438871,-500.0,0.00028735,120]
[407956832,1772927438884,-500.0,0.00028735,120]
[407956833,1772927438893,-500.0,0.00028735,120]
[407956834,1772927438903,-500.0,0.00028735,120]
[407956835,1772927438913,-177.40025043,0.00028735,2]
[407956836,1772927438923,-200.0,0.00028742,7]
[407956837,1772927438932,-151.0,0.00028742,7]
[407956838,1772927438941,-151.0,0.00028742,7]
[407956839,1772927438950,-536.97961848,0.00028744,2]
[407956840,1772927438960,-155.55756851,0.00028745,20]
[407956841,1772927438969,-500.0,0.00028745,120]
[407956842,1772927438978,-500.0,0.00028745,120]
[407956843,1772927438987,-579.0562129,0.00028745,120]
[407956844,1772927438997,-500.0,0.00028745,120]
[407956845,1772927439006,-500.0,0.00028745,120]
[407956846,1772927439015,-500.0,0.00028745,120]
[407956847,1772927439024,-500.0,0.00028745,120]
[407956848,1772927439033,-500.0,0.00028745,120]
[407956849,1772927439043,-500.0,0.00028745,120]
[407956850,1772927439052,-500.0,0.00028745,120]
[407956851,1772927439061,-500.0,0.00028745,120]
[407956852,1772927439073,-150.0,0.00028745,2]
[407956853,1772927439082,-500.0,0.00028745,120]
[407956854,1772927439091,-500.0,0.00028745,120]
[407956855,1772927439100,-500.0,0.00028745,120]
[407956856,1772927439109,-500.0,0.00028745,120]
[407956857,1772927439121,-500.0,0.00028745,120]
[407956858,1772927439132,-539.36,0.00028745,120]
[407956859,1772927439143,-500.0,0.00028745,120]
[407956860,1772927439155,-500.0,0.00028745,120]
[407956861,1772927439166,-500.0,0.00028745,30]
[407956862,1772927439177,-500.0,0.00028745,30]
[407956863,1772927439187,-500.0,0.00028745,30]
[407956864,1772927439198,-500.0,0.00028745,30]
[407956865,1772927439208,-500.0,0.00028745,30]
[407956866,1772927439218,-500.0,0.00028745,30]
[407956867,1772927439228,-500.0,0.00028745,30]
[407956868,1772927439238,-498.73,0.00028745,30]
[407956869,1772927439247,-500.0,0.00028745,120]
[407956870,1772927439257,-203.5620078,0.00028745,120]
[407956871,1772927439271,-2500000.0,0.00028745,2]
[407956872,1772927439282,-2881.83,0.00028745,2]
[407956873,1772927439291,-5080.09,0.00028745,2]
[407956874,1772927439301,-500.0,0.00028782,2]
[407956875,1772927439310,-549.85,0.000288,7]
[407956876,1772927439319,-560.36,0.000288,7]
[407956877,1772927439328,-1200.0,0.000288,10]
[407956878,1772927439338,-500.0,0.00028837,2]
[407956879,1772927439347,-3503.0,0.00028846,2]
[407956880,1772927439356,-1341.0,0.00028846,2]
[407956881,1772927439365,-1042.0,0.00028846,2]
[407956882,1772927439374,-619.0,0.00028846,2]
[407956883,1772927439383,-1279.0,0.00028846,2]
[407956884,1772927439392,-414.0,0.00028846,2]
[407956885,1772927439402,-3747.0,0.00028846,2]
[407956886,1772927439411,-500.0,0.00028892,2]
[407956887,1772927439421,-1600.0,0.000289,10]
[407956888,1772927439431,-233.644,0.00029647,30]
[407956889,1772927439441,-233.30869604,0.00029651,7]
[407956890,1772927439450,-150.0,0.00029971,2]
[407956891,1772927439465,-952.84,0.00029976,120]
[407956892,1772927439475,-4812.29255459,0.0003,3]
[407956893,1772927439485,-165.57446534,0.00030235,2]
[407956894,1772927439495,-165.57446534,0.00030252,2]
[407956895,1772927439505,-165.53703466,0.00030265,2]
[407956896,1772927439514,-165.53703466,0.00030268,2]
[407956897,1772927439523,-504.0,0.000305,14]
[407956898,1772927439532,-28021.34101709,0.00030892,2]
[407956899,1772927439541,-21215.71321289,0.00030978,2]
[407956900,1772927439551,-150.0,0.0003147,2]
[407956901,1772927439562,-2909.12560925,0.00031551,2]
[407956902,1772927439572,-3503.0,0.00031846,2]
[407956903,1772927439583,-1042.0,0.00031846,2]
[407956904,1772927439594,-414.0,0.00031846,2]
[407956905,1772927439603,-1200.05,0.00031846,2]
[407956906,1772927439613,-648.54,0.00032164,2]
[407956907,1772927439623,-597.98311845,0.00032188,2]
[407956908,1772927439633,-1191.0116059,0.00032849,2]
[407956909,1772927439642,-952.84,0.00032974,120]
[407956910,1772927439651,-150.0,0.00033043,2]
[407956911,1772927439663,-28021.34101709,0.00033238,2]
[407956912,1772927439672,-21215.71321289,0.00033314,2]
[407956913,1772927439681,-648.54,0.00033533,2]
[407956914,1772927439691,-477.24,0.000339,30]
[407956915,1772927439700,-4468.19,0.00033964,2]
[407956916,1772927439710,-2909.12560925,0.0003457,2]
[407956917,1772927439720,-150.0,0.00034696,2]
[407956918,1772927439730,-1500.0,0.00034795,2]
[407956919,1772927439740,-560.36,0.000348,14]
[407956920,1772927439754,-3503.0,0.00034846,2]
[407956921,1772927439765,-1042.0,0.00034846,2]
[407956922,1772927439775,-414.0,0.00034846,2]
[407956923,1772927439788,-3012.58037,0.00035,120]
[407956924,1772927439798,-504.0,0.00035,18]
[407956925,1772927439807,-500.0,0.00035104,29]
[407956926,1772927439818,-28021.34101709,0.00035585,2]
[407956927,1772927439828,-160.77370798,0.00035616,2]
[407956928,1772927439838,-21215.71321289,0.0003565,2]
[407956929,1772927439848,-597.98311845,0.0003573,2]
[407956930,1772927439858,-952.84,0.00035972,120]
[407956931,1772927439867,-150.0,0.0003643,2]
[407956932,1772927439877,-259.77,0.00036921,2]
[407956933,1772927439888,-1191.0116059,0.00037053,2]
[407956934,1772927439897,-270.02,0.00037167,2]
[407956935,1772927439908,-5770.09022864,0.000372,120]
[407956936,1772927439919,-5770.09022861,0.000372,120]
[407956937,1772927439929,-2909.12560925,0.00037589,2]
[407956938,1772927439938,-1000.0,0.00037731,7]
[407956939,1772927439948,-170.34042304,0.00037753,120]
[407956940,1772927439958,-3503.0,0.00037846,2]
[407956941,1772927439967,-1042.0,0.00037846,2]
[407956942,1772927439976,-414.0,0.00037846,2]
[407956943,1772927439986,-28021.34101709,0.00037932,2]
[407956944,1772927439996,-21215.71321289,0.00037986,2]
[407956945,1772927440005,-159.47,0.00038034,30]
[407956946,1772927440015,-273.62,0.00038034,30]
[407956947,1772927440024,-500.0,0.0003811,2]
[407956948,1772927440034,-150.0,0.00038252,2]
[407956949,1772927440043,-1999.0,0.00038356,120]
[407956950,1772927440052,-87953.0004,0.00038554,2]
[407956951,1772927440061,-2720.925,0.00038654,52]
[407956952,1772927440071,-166.457,0.00038654,52]
[407956953,1772927440080,-1999.0,0.00038904,120]
[407956954,1772927440089,-355.78764229,0.00039155,2]
[407956955,1772927440098,-656.4382916,0.00039273,2]
[407956956,1772927440108,-893.14132913,0.00039273,2]
[407956957,1772927440117,-597.98311845,0.00039273,2]
[407956958,1772927440126,-3708.82164898,0.00039273,2]
[407956959,1772927440136,-560.36,0.000394,14]
[407956960,1772927440146,-3240.0,0.00039413,120]
[407956961,1772927440155,-1999.0,0.00039452,120]
[407956962,1772927440164,-504.0,0.000395,22]
[407956963,1772927440174,-169.438187,0.00039698,7]
[407956964,1772927440183,-150.0,0.00039698,7]
[407956965,1772927440192,-296.187227,0.00039702,7]
[407956966,1772927440201,-1999.0,0.0004,120]
[407956967,1772927440210,-150.0,0.00040165,2]
[407956968,1772927440220,-28021.34101709,0.00040278,15]
[407956969,1772927440229,-21215.71321289,0.00040321,15]
[407956970,1772927440238,-1999.0,0.00040547,120]
[407956971,1772927440247,-2909.12560925,0.00040608,28]
[407956972,1772927440257,-1500.0,0.00040628,120]
[407956973,1772927440266,-3503.0,0.00040846,2]
[407956974,1772927440276,-1042.0,0.00040846,2]
[407956975,1772927440285,-414.0,0.00040846,2]
[407956976,1772927440294,-500.0,0.00041095,2]
[407956977,1772927440303,-500.0,0.00041095,2]
[407956978,1772927440315,-500.0,0.00041095,2]
[407956979,1772927440324,-500.0,0.00041095,2]
[407956980,1772927440334,-500.0,0.00041095,2]
[407956981,1772927440343,-500.0,0.00041095,2]
[407956982,1772927440352,-500.0,0.00041095,2]
[407956983,1772927440361,-500.0,0.00041095,2]
[407956984,1772927440370,-500.0,0.00041095,2]
[407956985,1772927440379,-500.0,0.00041095,2]
[407956986,1772927440388,-500.0,0.00041095,2]
[407956987,1772927440397,-500.0,0.00041095,2]
[407956988,1772927440406,-500.0,0.00041095,2]
[407956989,1772927440415,-500.0,0.00041095,2]
[407956990,1772927440424,-500.0,0.00041095,2]
[407956991,1772927440433,-500.0,0.00041095,2]
[407956992,1772927440442,-500.0,0.00041095,2]
[407956993,1772927440452,-239.09127896,0.00041095,2]
[407956994,1772927440460,-300.0,0.00041095,2]
[407956995,1772927440470,-300.0,0.00041095,2]
[407956996,1772927440479,-300.0,0.00041095,2]
[407956997,1772927440488,-300.0,0.00041095,2]
[407956998,1772927440498,-300.0,0.00041095,2]
[407956999,1772927440683,-300.0,0.00041095,2]
[407957000,1772927440693,-300.0,0.00041095,2]
[407957001,1772927440702,-300.0,0.00041095,2]
[407957002,1772927440711,-300.0,0.00041095,2]
[407957003,1772927440722,-300.0,0.00041095,2]
[407957004,1772927440731,-300.0,0.00041095,2]
[407957005,1772927440740,-300.0,0.00041095,2]
[407957006,1772927440754,-300.38319783,0.00041095,2]
[407957007,1772927440763,-1999.0,0.00041095,120]
[407957008,1772927440773,-746.0,0.00041096,120]
[407957009,1772927440783,-800.0,0.00041096,14]
[407957011,1772927440793,-800.0,0.00041096,14]
[407957012,1772927440802,-800.0,0.00041096,14]
[407957013,1772927440812,-800.0,0.00041096,14]
[407957014,1772927440821,-800.0,0.00041096,14]
[407957015,1772927440830,-800.0,0.00041096,14]
[407957016,1772927440839,-800.0,0.00041096,14]
[407957017,1772927440849,-800.0,0.00041096,14]
[407957019,1772927440858,-200.0,0.00041206,120]
[407957021,1772927440867,-1191.0116059,0.00041257,2]
[407957022,1772927440876,-1999.0,0.00041643,120]
[407957023,1772927440886,-746.0,0.00041644,120]
[407957024,1772927440895,-150.0,0.00042173,120]
[407957025,1772927440905,-1999.0,0.00042191,120]
[407957026,1772927440916,-500.0,0.00042191,120]
[407957027,1772927440925,-500.0,0.00042191,120]
[407957028,1772927440934,-500.0,0.00042191,120]
[407957029,1772927440943,-500.0,0.00042191,120]
[407957030,1772927440956,-500.0,0.00042191,120]
[407957031,1772927440965,-500.0,0.00042191,120]
[407957032,1772927440975,-500.0,0.00042191,120]
[407957033,1772927440984,-500.0,0.00042191,120]
[407957034,1772927440993,-500.0,0.00042191,120]
[407957035,1772927441002,-500.0,0.00042191,120]
[407957036,1772927441011,-500.0,0.00042191,120]
[407957037,1772927441020,-500.0,0.00042191,120]
[407957038,1772927441030,-500.0,0.00042191,120]
[407957039,1772927441039,-500.0,0.00042191,120]
[407957040,1772927441048,-500.0,0.00042191,120]
[407957041,1772927441057,-500.0,0.00042191,120]
[407957042,1772927441066,-500.0,0.00042191,120]
[407957043,1772927441074,-746.0,0.00042192,120]
[407957044,1772927441083,-459.60835984,0.00042426,2]
[407957045,1772927441093,-300.0,0.00042426,2]
[407957046,1772927441102,-300.0,0.00042426,2]
[407957047,1772927441111,-528.02277108,0.00042426,2]
[407957048,1772927441120,-306.98881472,0.00042426,2]
[407957049,1772927441129,-300.0,0.00042426,2]
[407957050,1772927441138,-300.0,0.00042426,2]
[407957051,1772927441147,-300.0,0.00042426,2]
[407957052,1772927441156,-300.0,0.00042426,2]
[407957053,1772927441165,-300.0,0.00042426,2]
[407957054,1772927441175,-300.0,0.00042426,2]
[407957055,1772927441183,-1048.99623049,0.00042426,2]
[407957056,1772927441193,-306.76170033,0.00042426,2]
[407957057,1772927441204,-856.54643746,0.00042426,2]
[407957058,1772927441215,-494.20103728,0.00042426,2]
[407957059,1772927441226,-300.0,0.00042426,2]
[407957060,1772927441238,-442.39800754,0.00042426,2]
[407957061,1772927441248,-509.70389573,0.00042426,2]
[407957062,1772927441259,-308.03022305,0.00042426,2]
[407957063,1772927441272,-300.0,0.00042426,2]
[407957064,1772927441283,-300.0,0.00042426,2]
[407957065,1772927441295,-300.0,0.00042426,2]
[407957066,1772927441304,-300.00000001,0.00042426,2]
[407957067,1772927441313,-300.0,0.00042426,2]
[407957068,1772927441323,-372.31395782,0.00042426,2]
[407957069,1772927441332,-300.0,0.00042426,2]
[407957070,1772927441342,-300.0,0.00042426,2]
[407957071,1772927441351,-302.12694182,0.00042426,2]
[407957072,1772927441361,-300.0,0.00042426,2]
[407957073,1772927441370,-300.0,0.00042426,2]
[407957074,1772927441380,-519.87184079,0.00042426,2]
[407957075,1772927441390,-300.0,0.00042426,2]
[407957076,1772927441399,-415.85804326,0.00042426,2]
[407957077,1772927441409,-300.0,0.00042426,2]
[407957078,1772927441418,-500.0,0.00042438,120]
[407957079,1772927441427,-150.0,0.00042546,120]